[Event "Romanian Championship 2024"]
[Site "Eforie Nord"]
[Date "2024.02.27"]
[Round "5.9"]
[White "Stoleriu, George"]
[Black "Prelipcean, Eric-Matei"]
[Result "0-1"]
[ECO "A11"]
[WhiteElo "2391"]
[BlackElo "2103"]
[Annotator "TA"]
[PlyCount "134"]
[EventDate "2024.02.24"]
[EventType "swiss"]
[EventCountry "ROU"]
[SourceTitle "playchess.com"]
[Source "ChessBase"]
[SourceQuality "1"]
[TimeControl "40/5400+30:900+30"]

{[%evp 14,134,37,26,27,37,33,32,56,12,35,32,27,0,-4,-19,0,0,0,0,20,10,17,0,0,0,14,-100,-102,-89,-82,-133,-138,-145,-139,-131,-60,-58,-98,-78,-77,-81,-61,-61,-65,-214,-55,-43,-90,-73,-31,-81,-75,-222,-236,-227,-63,-31,-18,-65,-67,-110,-89,-94,-95,-138,-147,-178,-119,-166,-160,-247,-241,-208,-200,-1047,-973,-713,-310,-325,-208,-272,-264,-227,-35,-22,-22,-14,-59,-377,0,0,0,-708,-693,-29963,-29965,-29964,-29966,-29969,-29968,-29972,-29973,-29971,-29975,-29976,-29977,-29977,-29978,-29978,-29979,-29979,-29980,-29980,-29981,-29981,-29982,-29986,-29987,-29987,-29988,-29988,-29989]} 1. b3 {[%emt 0:00:30]} Nf6 {[%emt 0:02:25]} 2. Bb2 {[%emt 0:00:01]} d5 {[%emt 0:00:10]} 3. Nf3 {[%emt 0:01:11]} g6 {[%emt 0:00:19]} 4. g3 {[%emt 0:00:05]} Bg7 {[%emt 0:00:15]} 5. Bg2 {[%emt 0:00:02]} O-O {[%emt 0:00:21]} 6. c4 {[%emt 0:00:07]} c6 {[%emt 0:00:11]} 7. O-O {[%emt 0:00:10]} a5 {[%emt 0:00:27]} 8. Nc3 {[%emt 0:00:35]} Ne4 {[%emt 0:01:39]} 9. Na4 {[%emt 0:01:14]} b5 {[%emt 0:01:39]} 10. Bxg7 {[%emt 0:13:01]} Kxg7 {[%emt 0:00:07] Weiß steht etwas besser.} 11. Nb2 {[%emt 0:01:44]} Qb6 {[%emt 0:05:44]} 12. d3 {[%emt 0:06:38]} Nf6 {[%emt 0:06:30][%cal Oe7e5]} 13. cxb5 {[%emt 0:03:38]} cxb5 {[%emt 0:00:10]} 14. Rc1 {[%emt 0:00:08]} Bb7 {[%emt 0:01:05]} 15. d4 {[%emt 0:01:14]} Nc6 {[%emt 0:03:43][%cal Bb8c6,Bc6b4,Bb4a2][%mdl 32]} 16. e3 {[%emt 0:01:52]} Nb4 {[%emt 0:05:19]} 17. a3 {[%emt 0:06:31]} Na2 {[%emt 0:02:22]} 18. Rc5 {[%emt 0:03:13]} Ne4 {[%emt 0:01:49]} 19. Qc2 {[%emt 0:00:36][%cal Ob2d3] Es drohte Nac3. Nd3! wäre nun fies.} Rfc8 $1 {[%emt 0:06:27] [#]} 20. Nd1 $1 {[%emt 0:01:34] [#]} Nac3 $1 $36 {[%emt 0:01:13][%mdl 2048] Schwarz hat starke Initiative.} 21. Rxc8 {[%emt 0:08:10]} (21. Rxc3 $2 Nxc3 22. Nxc3 Qc6 $19) (21. Nxc3 $2 Nxc5 22. Nd2 (22. dxc5 $2 Qxc5 23. Qd1 Qxc3 $19) 22... Nd7 $19) (21. b4 axb4) 21... Rxc8 {[%emt 0:00:08]} 22. Ne5 {[%emt 0:01:02]} ({Besser ist} 22. b4) 22... b4 {[%emt 0:09:29]} 23. Nxc3 {[%emt 0:03:00]} Rxc3 {[%emt 0:02:09]} 24. Qb2 {[%emt 0:00:49]} f6 {[%emt 0:14:33]} (24... Ba6 $17 25. Ra1 Qd6 26. axb4 Qxb4 (26... axb4 27. Qa2 $15)) 25. Nd7 $15 {[%emt 0:05:12]} Qc7 {[%emt 0:01:12]} (25... Qb5 $5 26. Bxe4 Qxd7 $17 (26... dxe4 27. Nc5 $11)) 26. Bxe4 {[%emt 0:00:10] Droht stark axb4.} Qxd7 {[%emt 0:00:08]} (26... dxe4 27. Nc5 Bd5 28. axb4 axb4 29. Rc1 $16) 27. Bg2 {[%emt 0:00:32]} Qc8 {[%emt 0:04:05]} 28. axb4 {[%emt 0:01:45]} axb4 {[%emt 0:00:07]} 29. h4 {[%emt 0:00:02]} (29. Ra1 $15) 29... Rc2 $2 {[%emt 0:00:59]} (29... Ba6 $1 $19 {[%cal Ra6f1]} 30. Ra1 Rc2) 30. Qa1 {[%emt 0:01:33]} Ba6 {[%emt 0:01:36]} 31. Bh3 {[%emt 0:16:01]} Qc6 {[%emt 0:00:55] Schwarz steht deutlich aktiver.} (31... Qxh3 $6 32. Qxa6 Rc3 33. Qb7 $11) 32. Rb1 {[%emt 0:01:28]} (32. Rd1 $1 $15) 32... Bd3 $17 {[%emt 0:07:17]} 33. Bf1 {[%emt 0:09:01]} (33. Rd1 $17 Rc3 34. Qa7) 33... Be4 $1 $19 {[%emt 0:01:14]} 34. Bg2 {[%emt 0:00:53]} Bxg2 {[%emt 0:05:49]} (34... Rxf2 $1 $19 35. Bxe4 Rd2) 35. Kxg2 $15 {[%emt 0:00:01]} Qc3 {[%emt 0:00:11]} 36. Qxc3 {[%emt 0:00:50]} (36. Kg1 $11 {kam in Betracht.}) 36... Rxc3 $11 {[%emt 0:00:02][%mdl 4096] Endspiel. KR-KR} (36... bxc3 37. b4 $11) 37. Ra1 {[%emt 0:00:15]} Kf7 {[%emt 0:10:13][%cal Oh7h5]} (37... Rxb3 $6 38. Ra5 $11) 38. Ra5 {[%emt 0:00:51]} Ke6 $1 {[%emt 0:00:36][%cal Oh7h5]} (38... Rxb3 39. Rxd5 Ke6 40. Rb5 $11) 39. Ra6+ {[%emt 0:00:07]} Kd7 $1 {[%emt 0:01:09]} 40. Ra7+ {[%emt 0:00:00]} Kd6 {[%emt 0:00:00]} (40... Kc6 $1 $19 41. Rxe7 Rxb3) 41. Ra6+ {[%emt 0:02:50]} (41. g4 $17) 41... Kc7 $1 $19 {[%emt 0:03:06]} 42. Ra7+ {[%emt 0:00:02]} (42. Kf3 $17) 42... Kb6 $1 {[%emt 0:04:36]} 43. Rxe7 {[%emt 0:00:17]} Rxb3 {[%emt 0:00:08] Und jetzt ...Rc3 wäre schön.} 44. Kf3 $2 {[%emt 0:15:58]} (44. Rxh7 Ra3 45. Rh8) 44... Rc3 {[%emt 0:01:33]} 45. Ke2 {[%emt 0:01:49]} b3 {[%emt 0:02:38]} (45... Rc7 $142 46. Rxc7 Kxc7) 46. Re8 {[%emt 0:00:42]} Kb5 {[%emt 0:02:18]} 47. Kd2 {[%emt 0:03:08]} Rc2+ {[%emt 0:05:10]} 48. Kd3 {[%emt 0:00:04]} Rc7 $2 {[%emt 0:00:05]} (48... Kb4 $1 $19 49. f3 Rc3+ 50. Kd2 Rc4 (50... Rc2+ $2 51. Kd3 $17)) 49. Rb8+ $15 {[%emt 0:04:32]} Ka4 {[%emt 0:00:15]} 50. f3 {[%emt 0:02:09]} Ka3 {[%emt 0:03:02]} 51. e4 $2 {[%emt 0:00:04][%mdl 8192]} ({Der einzige Zug:} 51. Ra8+ $1 $15 Kb2 52. e4) 51... b2 $2 {[%emt 0:00:59]} ({Günstiger ist} 51... dxe4+ $1 $19 52. fxe4 b2) 52. exd5 $11 {[%emt 0:00:48] d6 ist eine echte Drohung.} Ka2 {[%emt 0:00:08]} 53. d6 $2 {[%emt 0:01:02][%mdl 8192] [#] Schwarz hat alles unter Kontrolle.} (53. Ra8+ $11 Kb1 54. Rb8 (54. d6 Rb7 $15)) 53... Rc8 $3 $19 {[%emt 0:00:17][%mdl 512]} 54. Rb7 {[%emt 0:02:28][%cal Od6d7] Schwarz muss nun d7! beachten.} (54. Rxc8 b1=Q+) 54... b1=Q+ {[%emt 0:00:12] Schwarz setzt Matt.} (54... b1=R 55. Ra7+ (55. d7 $2 Rd8 $19) 55... Kb3 (55... Kb2 56. Rb7+ Ka2 57. Ra7+ Kb3 58. Rb7+ Ka2 $11) 56. Rb7+ Ka2 57. Ra7+ (57. d7 $2 Rd8 $19) 57... Kb2 58. Rb7+ Ka2 $11) 55. Rxb1 {[%emt 0:00:03]} Kxb1 {[%emt 0:00:07] KR-KP} 56. Ke4 {[%emt 0:00:01]} Kc2 {[%emt 0:00:17]} 57. Kd5 {[%emt 0:00:05]} Kd3 {[%emt 0:00:11]} 58. Ke6 {[%emt 0:01:37]} Kxd4 {[%emt 0:00:09]} 59. Kxf6 {[%emt 0:00:51]} Ke3 {[%emt 0:00:52]} 60. f4 {[%emt 0:00:16]} Kf3 {[%emt 0:00:17]} 61. h5 {[%emt 0:00:08]} Kxg3 {[%emt 0:03:54]} 62. hxg6 {[%emt 0:00:05]} hxg6 {[%emt 0:00:05] KR-KPP} (62... Kxf4 $2 63. gxh7 Rh8 64. d7 $18 (64. Kg7 Rd8 $18)) 63. f5 {[%emt 0:00:20] [#]} Rf8+ $1 {[%emt 0:00:20]} 64. Kxg6 {[%emt 0:01:08] [#]} Kf4 $1 {[%emt 0:00:05]} 65. d7 {[%emt 0:01:03]} Ke5 $1 {[%emt 0:00:19]} (65... Rxf5 $2 66. d8=Q (66. d8=B Ke5 $11) 66... Ke4 67. Qa8+ Rd5 68. Kf6 $18) 66. Kg7 {[%emt 0:00:37]} Rd8 {[%emt 0:00:04]} (66... Rxf5 $2 {ist das falsche Schlagen.} 67. d8=Q $18 (67. d8=B Rf3 $11)) 67. f6 {[%emt 0:00:26]} Rxd7+ {[%emt 0:00:06] Gewichteter Fehlerwert: Weiß=0.50/Schwarz=0.33.  Verlustzug:     	Weiß=2     	---        Gewinn verpasst:   	---       	Schwarz=3     Fehler:       	Weiß=9     	Schwarz=3     Ungenau:       	Weiß=5     	---        OK:         	Weiß=14    	Schwarz=6     Bester:       	Weiß=7     	Schwarz=7     Stark:        	---       	Schwarz=6     Brilliant:      	---       	Schwarz=2} 0-1

[Event "Romanian Championship 2024"]
[Site "Eforie Nord"]
[Date "2024.02.27"]
[Round "5.10"]
[White "Ilinca, Felix-Antonio"]
[Black "Craciun, Sasha-Matei"]
[Result "1-0"]
[ECO "C54"]
[WhiteElo "2415"]
[BlackElo "2080"]
[Annotator "TA"]
[PlyCount "89"]
[EventDate "2024.02.24"]
[EventType "swiss"]
[EventCountry "ROU"]
[SourceTitle "playchess.com"]
[Source "ChessBase"]
[SourceQuality "1"]
[TimeControl "40/5400+30:900+30"]

{[%evp 13,88,19,4,4,8,7,30,-5,48,-18,-12,0,127,120,125,124,307,294,304,286,291,207,241,228,237,223,234,233,304,304,425,420,433,442,427,445,441,434,673,664,746,724,855,633,650,618,837,591,608,589,856,821,824,860,855,778,912,868,1646,1607,1356,1067,1193,1124,1135,949,1204,466,1164,1106,29981,29982,29982,29983,29998,29999,29999]} 1. e4 {[%emt 0:00:23]} e5 {[%emt 0:00:05]} 2. Nf3 {[%emt 0:00:38]} Nc6 {[%emt 0:00:11]} 3. Bc4 {[%emt 0:00:26]} Bc5 {[%emt 0:00:07]} 4. d3 {[%emt 0:00:30]} Nf6 {[%emt 0:00:07]} 5. c3 {[%emt 0:00:34]} d6 {[%emt 0:01:06]} 6. Bg5 {[%emt 0:00:48]} h6 {[%emt 0:00:47]} 7. Bh4 {[%emt 0:00:41]} a6 {[%emt 0:03:19]} 8. a4 {[%emt 0:02:26]} Ba7 {[%emt 0:00:54]} 9. Nbd2 {[%emt 1:28:34]} Qe7 {[%emt 0:02:17]} 10. b4 {[%emt 0:00:00] White has an edge.} Be6 {[%emt 0:08:32]} (10... g5 $11 11. Bg3 Nh5) 11. Qb3 {[%emt 0:00:00]} (11. O-O $14) 11... g5 $11 {[%emt 0:05:09]} 12. Bg3 {[%emt 0:00:00]} b5 {[%emt 0:09:08]} 13. axb5 $16 {[%emt 0:00:00]} axb5 {[%emt 0:00:58]} 14. Bxb5 {[%emt 0:00:00]} Bxb3 $2 {[%emt 0:13:11] A mistake that costs the game.} (14... O-O $16 {might work better.} 15. Qd1 Bd7) 15. Bxc6+ $18 {[%emt 0:00:00]} Kf8 {[%emt 0:01:33][%cal Oa7f2] Threatens to win with ...Bxf2+!} 16. Bxa8 {[%emt 0:00:00]} Bc2 {[%emt 0:02:02]} 17. Ke2 {[%emt 0:00:00]} Bb6 {[%emt 0:09:00]} 18. Rhc1 {[%emt 0:00:00]} Bxd3+ {[%emt 0:05:19]} 19. Kxd3 {[%emt 0:00:00]} Kg7 {[%emt 0:02:14]} 20. Bc6 {[%emt 0:00:00]} Ng4 {[%emt 0:05:01]} 21. Ke2 {[%emt 0:00:00]} h5 {[%emt 0:03:33]} 22. h4 {[%emt 0:00:00]} (22. h3 Nh6 23. c4 Rd8 $18) 22... f6 {[%emt 0:01:04]} 23. Nc4 {[%emt 0:00:00]} Rb8 {[%emt 0:02:37]} 24. Nxb6 {[%emt 0:00:00]} Rxb6 {[%emt 0:00:18]} 25. b5 {[%emt 0:00:00]} Rb8 {[%emt 0:02:14]} (25... Nh6 $142 26. Rcb1 Kh7) 26. Ra7 {[%emt 0:00:00]} Kg6 {[%emt 0:02:18]} 27. c4 {[%emt 0:00:00]} Nh6 {[%emt 0:00:36]} 28. Bd5 {[%emt 0:00:00]} g4 {[%emt 0:02:20]} 29. Nd2 {[%emt 0:00:00]} f5 {[%emt 0:00:27][%cal Bf6f5,Bf5f4][%mdl 32]} 30. f3 {[%emt 0:00:00]} f4 {[%emt 0:02:35]} 31. Bf2 {[%emt 0:00:00][%cal Bg3f2,Bf2g1,Bg1a7,Ba7c5,Bc5e7][%mdl 32]} g3 {[%emt 0:01:03]} 32. Bg1 {[%emt 0:00:00]} Qxh4 {[%emt 0:00:11]} 33. Rxc7 {[%emt 0:00:00]} Qh1 {[%emt 0:00:08]} 34. Kd3 {[%emt 0:00:00]} h4 {[%emt 0:03:34]} 35. Rd7 {[%emt 0:00:00][%cal Bc7d7,Bd7d6,Bd6e6][%mdl 32]} Qxg2 {[%emt 0:00:46]} 36. Rxd6+ {[%emt 0:00:00]} Kg5 {[%emt 0:03:44]} 37. Ba7 {[%emt 0:00:00]} Rh8 {[%emt 0:04:17]} 38. Re6 {[%emt 0:00:47]} Nf7 {[%emt 0:04:09]} 39. Bc5 {[%emt 0:00:47]} h3 {[%emt 0:00:45]} 40. Be7+ {[%emt 0:00:00]} (40. Rg1 Qxg1 41. Bxg1 (41. Rc6 $2 Qxc5 42. Rxc5 g2 $19) 41... h2 $17) 40... Kh5 {[%emt 0:00:00]} 41. Rf6 {[%emt 0:08:21]} Nh6 {[%emt 0:03:55] [#]} 42. Ra1 $1 {[%emt 0:00:43] White mates.} h2 {[%emt 0:01:02] [#]} 43. Raa6 $1 {[%emt 0:00:22]} h1=Q {[%emt 0:00:37] [#]} 44. Rf5+ $1 {[%emt 0:00:19][%mdl 512]} Nxf5 {[%emt 0:00:22]} 45. Bf7# {[%emt 0:00:04] Weighted Error Value: White=0.37/Black=0.53.  Loses game:     	---       	Black=1      Mistake:       	White=1     	Black=3      Inaccurate:     	White=1     	Black=4      OK:         	White=9     	Black=7      Best:        	White=3     	---} 1-0

[Event "Romanian Championship 2024"]
[Site "Eforie Nord"]
[Date "2024.02.27"]
[Round "5.11"]
[White "Vilcu, Matei-Stefan"]
[Black "Secheres, Adrian-Simion"]
[Result "1-0"]
[ECO "C55"]
[WhiteElo "2176"]
[BlackElo "2371"]
[Annotator "TA"]
[PlyCount "113"]
[EventDate "2024.02.24"]
[EventType "swiss"]
[EventCountry "ROU"]
[SourceTitle "playchess.com"]
[Source "ChessBase"]
[SourceQuality "1"]
[TimeControl "40/5400+30:900+30"]

1. e4 {[%emt 0:00:01]} e5 {[%emt 0:00:14]} 2. Nf3 {[%emt 0:00:05]} Nc6 {[%emt 0:00:19]} 3. Bc4 {[%emt 0:00:11]} Nf6 {[%emt 0:00:28]} 4. d3 {[%emt 0:00:04]} Be7 {[%emt 0:00:24]} 5. O-O {[%emt 0:00:12]} O-O {[%emt 0:00:21]} 6. Re1 {[%emt 0:00:11]} d6 {[%emt 0:00:27]} 7. a4 {[%emt 0:00:13]} Na5 {[%emt 0:00:45]} 8. Ba2 {[%emt 0:00:06]} c5 {[%emt 0:00:25]} 9. c3 {[%emt 0:00:12]} Nc6 {[%emt 0:00:26]} 10. Na3 {[%emt 0:00:34]} h6 {[%emt 0:00:51]} 11. Bd2 {[%emt 0:00:55]} Re8 {[%emt 0:04:46]} 12. h3 {[%emt 0:00:37]} Bf8 {[%emt 0:02:31]} 13. Nc4 {[%emt 0:03:36]} Be6 {[%emt 0:04:47]} 14. b4 {[%emt 0:06:50]} cxb4 {[%emt 0:08:59]} 15. cxb4 {[%emt 0:01:59]} Rc8 {[%emt 0:02:15]} 16. b5 {[%emt 0:24:21]} Nb8 {[%emt 0:05:31]} 17. Ba5 {[%emt 0:02:05]} b6 {[%emt 0:14:14]} 18. Bb4 {[%emt 0:12:01]} Qc7 {[%emt 0:06:02]} 19. Rc1 {[%emt 0:02:21]} Qb7 {[%emt 0:02:08]} 20. Qd2 {[%emt 0:08:05]} Rcd8 {[%emt 0:07:58]} 21. Qb2 {[%emt 0:04:38]} Nh5 {[%emt 0:03:23]} 22. d4 {[%emt 0:04:51]} Nf4 {[%emt 0:03:21]} 23. Qd2 {[%emt 0:09:10]} d5 {[%emt 0:08:44]} 24. Bxf8 {[%emt 0:01:16]} (24. Ncxe5 Bxb4 25. Qxb4 dxe4 26. Bxe6 Nxe6 $11) 24... dxc4 {[%emt 0:01:29]} 25. Nxe5 {[%emt 0:01:20]} Nxg2 {[%emt 0:02:47]} (25... Rxf8 $16 26. Qxf4 Rxd4) 26. Kxg2 $2 {[%emt 0:06:28]} ({White has to play} 26. Bxg7 $1 $18 {[%cal Od2h6] Intending Qxh6! and mate.} Kxg7 (26... Nxe1 27. Qxh6) 27. Kxg2) 26... Bxh3+ $1 $14 {[%emt 0:02:39]} 27. Kxh3 {[%emt 0:01:55]} Rxe5 {[%emt 0:00:06]} 28. Qe3 {[%emt 0:03:59]} (28. Bxc4 Rxe4 29. Rxe4 Qxe4 30. Bxg7 (30. Bb4 Rxd4 31. Qe3 Qh4+ 32. Kg2 Rg4+ 33. Kf3 Rxc4 $11) 30... Qf3+ 31. Kh4 Qe4+ 32. Kh3 (32. Kh5 Qg6+ 33. Kh4 Qxg7 $15) 32... Qf3+ 33. Kh2 Qh5+ 34. Kg3 Kxg7 $11) (28. Bxg7 $5 Qd7+ 29. Kg3 Kxg7 30. Rg1 (30. Bxc4 Qxd4 31. Qf4 Rg5+ 32. Kh3 Qd7+ 33. Kh2 Qe7 $14) (30. Rxc4 Rg5+ 31. Kf3 Qg4+ 32. Ke3 Nd7 $11) 30... Rg5+ 31. Kh2 Qxd4 32. Rxg5+ hxg5 33. Qxg5+ Kf8 34. Qh6+ (34. Bxc4 Qxf2+ 35. Kh3 Qf3+ 36. Kh2 Qf2+ 37. Kh3 Qf3+ 38. Kh2 Qf2+ $11) 34... Ke8 35. Kg1 $16 (35. Bxc4 Qxf2+ 36. Kh1 Qf3+ 37. Kh2 Qf2+ 38. Kh1 Qf3+ 39. Kh2 Qf2+ $11)) 28... Qd7+ {[%emt 0:05:10]} (28... Qc8+ $11 29. Kg2 (29. Kh4 $2 Rxd4 30. Rxc4 Qd8+ $19) 29... Rg5+ 30. Kf1 Kxf8) 29. Kg2 $1 $16 {[%emt 0:00:09]} (29. Kh4 Rg5 30. Rg1 Rxg1 31. Rxg1 Kxf8 $17) 29... Rg5+ {[%emt 0:00:14]} 30. Kf1 {[%emt 0:00:18]} Rxf8 {[%emt 0:00:58]} 31. Ke2 {[%emt 0:02:04]} (31. e5 $16) 31... Qe7 {[%emt 0:07:31]} (31... Rg4 $1 $11) 32. Bxc4 {[%emt 0:01:57]} ({White should try} 32. e5 $16) 32... Nd7 $11 {[%emt 0:00:07]} 33. Kd1 {[%emt 0:01:39]} (33. e5 $11 Re8 34. f4) 33... Nf6 {[%emt 0:01:46]} (33... Rd8 $1 $15) 34. f3 {[%emt 0:00:58]} Rd8 {[%emt 0:01:14]} 35. Re2 {[%emt 0:00:27]} (35. e5 $11 Nd5 36. Bxd5 Rxd5 37. f4) 35... Qb4 {[%emt 0:01:13]} (35... Qd6 {simplifies} 36. Rec2 Qxd4+ 37. Qxd4 Rxd4+ 38. Ke2 Rc5) 36. Rd2 {[%emt 0:01:11]} (36. e5 $15 Qxa4+ 37. Ke1 Qb4+ 38. Kf2) 36... Qxa4+ {[%emt 0:01:03]} 37. Ke1 {[%emt 0:00:01]} Rh5 {[%emt 0:00:51]} 38. Bf1 {[%emt 0:00:27]} Qb4 {[%emt 0:01:35]} 39. Qc3 {[%emt 0:00:19]} Qe7 {[%emt 0:01:14]} 40. Qc7 {[%emt 0:00:00]} (40. Kd1 $17) 40... Qe8 {[%emt 0:00:00]} (40... Rd7 $19 41. Qg3 Kh7) 41. Qc6 {[%emt 0:05:10]} (41. Kf2 $1 $15) 41... Qf8 $1 $17 {[%emt 0:02:26]} 42. Qc7 {[%emt 0:04:42]} Rh1 {[%emt 0:01:18]} 43. d5 {[%emt 0:01:02]} (43. Kf2 $142) 43... Nd7 $1 $17 {[%emt 0:06:08]} 44. d6 {[%emt 0:02:16]} (44. Kf2 $17) 44... Nc5 {[%emt 0:00:57]} ({Better is} 44... f5 $1 $19 {[%cal Rf5e4]} 45. exf5 (45. Kf2 $2 Kh7 $19) 45... Qf6 46. Qc4+ Kh8) 45. Rc3 {[%emt 0:02:02] [#]} (45. Rcc2 $17) 45... Rd7 $2 {[%emt 0:02:59]} (45... Qe8 $1 $19 {[%cal Re8b5] Hoping for ...Qxb5!} 46. Kf2 Rh5) 46. Rxc5 $1 $11 {[%emt 0:01:16]} Rxc7 {[%emt 0:00:06]} 47. Rxc7 {[%emt 0:00:11]} Qd8 $2 {[%emt 0:01:21]} (47... Kh7 $1 $11 {and Black stays safe.} 48. Rc3 a5) 48. d7 $1 $18 {[%emt 0:01:09]} Kh7 {[%emt 0:01:21] [#]} (48... Qxc7 $2 49. d8=Q+ (49. d8=B Qc1+ 50. Ke2 Rh2+ 51. Kd3 Rxd2+ 52. Ke3 g5 53. Be2 Qe1 54. Bxg5 hxg5 55. f4 Qxe2#) 49... Qxd8 50. Rxd8+ Kh7 51. Rd7 $18) 49. Rc8 $1 {[%emt 0:01:15]} Qh4+ $2 {[%emt 0:00:05]} (49... Qg5 {was worth a try.} 50. d8=Q (50. d8=R Qe3+ 51. Re2 Qxf3 $11) 50... Qe3+ 51. Kd1 (51. Re2 Qxf3 52. Qg8+ Kg6 $18) 51... Qb3+ 52. Ke2 Rh2+ 53. Ke1 Qb1+ 54. Rd1 Qb4+ 55. Qd2 Rxd2 56. Rxd2 Qe7) 50. Ke2 $18 {[%emt 0:02:40]} Rh2+ {[%emt 0:00:47]} 51. Kd1 {[%emt 0:00:13]} Rxd2+ 52. Kxd2 {[%emt 0:00:01]} Qf2+ {[%emt 0:01:04]} 53. Kc3 {[%emt 0:00:13]} Qe1+ {[%emt 0:00:59]} 54. Kd4 {[%emt 0:01:36]} Qd2+ {[%emt 0:03:06]} (54... Qxf1 $142 55. d8=Q (55. d8=R $2 {is the wrong capture.} Qxf3 56. Rh8+ Kg6 $19) 55... Qxf3) 55. Bd3 $18 {[%emt 0:00:04]} Qb4+ {[%emt 0:00:28]} 56. Kd5 {[%emt 0:00:31]} Qb3+ {[%emt 0:00:20]} 57. Bc4 {[%emt 0:00:45]} 1-0

[Event "Romanian Championship 2024"]
[Site "Eforie Nord"]
[Date "2024.02.27"]
[Round "5.12"]
[White "Prisacaru, Stefan-Emilian"]
[Black "Botea, David-Alexandru"]
[Result "1-0"]
[ECO "D05"]
[WhiteElo "2289"]
[BlackElo "2081"]
[Annotator "TA"]
[PlyCount "71"]
[EventDate "2024.02.24"]
[EventType "swiss"]
[EventCountry "ROU"]
[SourceTitle "playchess.com"]
[Source "ChessBase"]
[SourceQuality "1"]
[TimeControl "40/5400+30:900+30"]

{[%evp 12,71,44,38,25,25,29,26,47,54,65,46,58,27,88,62,77,66,110,89,88,94,95,53,69,52,65,65,104,77,73,52,95,95,100,85,279,252,393,366,352,167,169,169,165,162,368,343,375,378,322,315,582,504,539,509,752,745,745,674,1720,1329]} 1. d4 {[%emt 0:04:32]} Nf6 {[%emt 0:00:16]} 2. Nf3 {[%emt 0:00:06]} e6 {[%emt 0:00:20]} 3. e3 {[%emt 0:00:27]} c5 {[%emt 0:02:55]} 4. c3 {[%emt 0:00:06]} Nc6 {[%emt 0:11:33]} 5. Bd3 {[%emt 0:01:17]} d5 {[%emt 0:00:41]} 6. Nbd2 {[%emt 0:01:00][%cal Bb1d2,Bd2f1,Bf1g3,Bg3h5][%mdl 32]} cxd4 {[%emt 0:05:30]} 7. exd4 {[%emt 0:00:06]} Bd6 {[%emt 0:00:16]} 8. Qe2 {[%emt 0:13:11]} Qc7 {[%emt 0:06:45]} 9. O-O {[%emt 0:01:05]} a6 {[%emt 0:12:00] White has an edge.} 10. Re1 {[%emt 0:01:44]} b5 {[%emt 0:04:29][%cal Bb7b5,Bb5b4][%mdl 32]} 11. Nf1 {[%emt 0:16:15]} b4 {[%emt 0:15:28]} 12. Bd2 {[%emt 0:11:46]} Qb6 {[%emt 0:03:07]} (12... bxc3 $11 {keeps the balance.} 13. bxc3 O-O) 13. Ng3 {[%emt 0:03:51]} Kf8 {[%emt 0:04:39]} 14. Bg5 {[%emt 0:10:39]} Be7 {[%emt 0:08:15][%cal Bd6e7,Be7f6,Bf6g5][%mdl 32]} 15. Ne5 {[%emt 0:16:50]} h6 {[%emt 0:10:10]} 16. Bxf6 {[%emt 0:07:17]} Bxf6 {[%emt 0:00:15]} 17. Nh5 {[%emt 0:00:13] White has more active pieces. The black rooks are passive.} Nxe5 {[%emt 0:03:07]} 18. dxe5 {[%emt 0:00:33]} Bg5 {[%emt 0:01:46]} 19. Qf3 {[%emt 0:02:23] Against g6} Bb7 {[%emt 0:01:59]} 20. cxb4 {[%emt 0:01:43]} Qxb4 {[%emt 0:02:02][%cal Ob7c6]} 21. g3 {[%emt 0:00:19]} d4 {[%emt 0:03:13]} 22. Be4 {[%emt 0:00:22]} Rb8 {[%emt 0:01:13]} 23. h4 {[%emt 0:00:21]} Bxe4 $2 {[%emt 0:00:54] Loses the game.} (23... Be7 $16 {was called for.}) 24. Rxe4 $18 {[%emt 0:00:34]} (24. Qxe4 Be7 $14) 24... Qxb2 {[%emt 0:00:49]} (24... Bd8 {might work better.} 25. Rd1 Qb7 26. Rdxd4 Be7) 25. Rd1 {[%emt 0:00:17]} Qc3 {[%emt 0:00:47]} 26. Qxc3 {[%emt 0:05:17]} (26. Rd3 $142 Qc1+ 27. Rd1) 26... dxc3 {[%emt 0:00:03]} 27. hxg5 {[%emt 0:00:03]} hxg5 {[%emt 0:00:09]} 28. g4 {[%emt 0:00:03] [#] Strongly threatening Rc4.} c2 $2 {[%emt 0:01:04]} (28... Ke7 29. Rc1 (29. Nxg7 c2 $16) 29... Rhc8) 29. Rc1 {[%emt 0:00:23]} Rb1 {[%emt 0:00:23]} 30. Ree1 {[%emt 0:00:18][%csl LRb1,LRc2]} Rb2 {[%emt 0:00:45]} 31. Re2 {[%emt 0:00:14]} Rxa2 {[%emt 0:00:24]} (31... g6 {was worth a try.}) 32. Rexc2 {[%emt 0:00:05] White is clearly winning.} Rxc2 {[%emt 0:00:23]} 33. Rxc2 {[%emt 0:00:01] [#] Threatening mate with Rc8+.} Rh6 {[%emt 0:00:45]} 34. Rc8+ {[%emt 0:00:41]} Ke7 {[%emt 0:00:01]} 35. Nxg7 {[%emt 0:00:51]} f6 {[%emt 0:00:59]} 36. Rc7+ {[%emt 0:00:24] Weighted Error Value: White=0.22 (precise) /Black=0.56.  Loses game:     	---       	Black=1      Mistake:       	White=1     	Black=4      Inaccurate:     	White=2     	Black=4      OK:         	White=11    	Black=5      Best:        	White=3     	---} 1-0